[Event "Titled Tuesday Blitz November 08 Late 2022"]
[White "Korchmar, Vasiliy"]
[Black "Sanchez, Robert"]
[WhiteFideId "24131750"]
[BlackFideId "2034360"]
[WhiteElo "2370"]
[BlackElo "2354"]
[Result "1-0"]
[Round "02"]
[TimeControl "180+1"]
[Date "2022.11.09"]
[WhiteClock "0:00:03"]
[BlackClock "0:00:04"]

1. e4 {[%clk 0:03:00]}  e6 {[%clk 0:02:59]} 2. d4 {[%clk 0:03:00]}  d5 {[%clk 0:02:59]} 3. e5 {[%clk 0:03:00]}  c5 {[%clk 0:02:59]} 4. c3 {[%clk 0:03:01]}  Nc6 {[%clk 0:03:00]} 5. Nf3 {[%clk 0:03:01]}  Bd7 {[%clk 0:03:00]} 6. Be2 {[%clk 0:02:59]}  Nge7 {[%clk 0:03:00]} 7. Na3 {[%clk 0:02:58]}  Nf5 {[%clk 0:02:59]} 8. Nc2 {[%clk 0:02:58]}  cxd4 {[%clk 0:02:57]} 9. cxd4 {[%clk 0:02:59]}  Be7 {[%clk 0:02:49]} 10. O-O {[%clk 0:02:57]}  h5 {[%clk 0:02:44]} 11. Bd3 {[%clk 0:02:57]}  g6 {[%clk 0:02:41]} 12. Rb1 {[%clk 0:02:46]}  h4 {[%clk 0:02:39]} 13. b4 {[%clk 0:02:38]}  g5 {[%clk 0:02:36]} 14. Be3 {[%clk 0:02:26]}  g4 {[%clk 0:02:34]} 15. Nfe1 {[%clk 0:02:26]}  g3 {[%clk 0:02:28]} 16. Bxf5 {[%clk 0:02:08]}  exf5 {[%clk 0:02:28]} 17. fxg3 {[%clk 0:01:58]}  hxg3 {[%clk 0:02:26]} 18. h3 {[%clk 0:01:59]}  Be6 {[%clk 0:02:15]} 19. Nd3 {[%clk 0:01:58]}  Qb6 {[%clk 0:02:10]} 20. a4 {[%clk 0:01:52]}  O-O-O {[%clk 0:02:07]} 21. a5 {[%clk 0:01:48]}  Qc7 {[%clk 0:02:02]} 22. Na3 {[%clk 0:01:01]}  Rdg8 {[%clk 0:01:53]} 23. Rc1 {[%clk 0:00:50]}  Kb8 {[%clk 0:01:47]} 24. b5 {[%clk 0:00:46]}  Bxa3 {[%clk 0:01:46]} 25. Rc3 {[%clk 0:00:42]}  Qxa5 {[%clk 0:01:37]} 26. Qb3 {[%clk 0:00:32]}  Ne7 {[%clk 0:00:49]} 27. Ra1 {[%clk 0:00:25]}  Rc8 {[%clk 0:00:36]} 28. Nc5 {[%clk 0:00:19]}  f4 {[%clk 0:00:27]} 29. Bxf4 {[%clk 0:00:17]}  Nf5 {[%clk 0:00:27]} 30. Rxa3 {[%clk 0:00:16]}  Qb6 {[%clk 0:00:25]} 31. Qa4 {[%clk 0:00:10]}  Rh4 {[%clk 0:00:20]} 32. Rf3 {[%clk 0:00:04]}  Nxd4 {[%clk 0:00:13]} 33. Qxd4 {[%clk 0:00:03]}  Qxc5 {[%clk 0:00:13]} 34. Qxc5 {[%clk 0:00:03]}  Rxc5 {[%clk 0:00:14]} 35. Bxg3 {[%clk 0:00:03]}  Re4 {[%clk 0:00:13]} 36. Rxf7 {[%clk 0:00:03]}  Rc1+ {[%clk 0:00:09]} 37. Kh2 {[%clk 0:00:03]}  Bxf7 {[%clk 0:00:06]} 38. e6+ {[%clk 0:00:03]}  Kc8 {[%clk 0:00:04]} 39. exf7 {[%clk 0:00:04]}  Rf1 {[%clk 0:00:04]} 40. Rf3 {[%clk 0:00:03]} 1-0


[Site "https://www.chess.com"]

[Event "Titled Tuesday Blitz November 08 Late 2022"]
[White "Kosakowski, Jakub"]
[Black "Principe, Gerson"]
[WhiteFideId "1185080"]
[BlackFideId "3804550"]
[WhiteElo "2849"]
[BlackElo "2572"]
[Result "0-1"]
[Round "02"]
[TimeControl "180+1"]
[Date "2022.11.09"]
[WhiteClock "0:00:02"]
[BlackClock "0:00:10"]

1. e4 {[%clk 0:03:00]}  c6 {[%clk 0:02:56]} 2. d4 {[%clk 0:02:58]}  d5 {[%clk 0:02:56]} 3. e5 {[%clk 0:02:58]}  Bf5 {[%clk 0:02:55]} 4. Nf3 {[%clk 0:02:58]}  e6 {[%clk 0:02:55]} 5. Be2 {[%clk 0:02:58]}  Nd7 {[%clk 0:02:56]} 6. O-O {[%clk 0:02:58]}  Bg6 {[%clk 0:02:56]} 7. Nbd2 {[%clk 0:02:57]}  Ne7 {[%clk 0:02:56]} 8. Nb3 {[%clk 0:02:56]}  Nf5 {[%clk 0:02:57]} 9. a4 {[%clk 0:02:54]}  Be7 {[%clk 0:02:56]} 10. g4 {[%clk 0:02:53]}  Nh4 {[%clk 0:02:56]} 11. Nxh4 {[%clk 0:02:54]}  Bxh4 {[%clk 0:02:57]} 12. f4 {[%clk 0:02:54]}  f6 {[%clk 0:02:55]} 13. Bd3 {[%clk 0:02:51]}  Bxd3 {[%clk 0:02:50]} 14. Qxd3 {[%clk 0:02:51]}  O-O {[%clk 0:02:51]} 15. Bd2 {[%clk 0:02:50]}  fxe5 {[%clk 0:02:34]} 16. fxe5 {[%clk 0:02:49]}  Qe7 {[%clk 0:02:27]} 17. h3 {[%clk 0:02:16]}  Bg5 {[%clk 0:02:25]} 18. Na5 {[%clk 0:02:10]}  Bxd2 {[%clk 0:02:18]} 19. Qxd2 {[%clk 0:02:11]}  Nb6 {[%clk 0:02:07]} 20. Kg2 {[%clk 0:02:03]}  Rxf1 {[%clk 0:02:04]} 21. Rxf1 {[%clk 0:02:04]}  Nxa4 {[%clk 0:01:57]} 22. c4 {[%clk 0:01:55]}  b6 {[%clk 0:01:14]} 23. Nxc6 {[%clk 0:01:34]}  Qd7 {[%clk 0:01:14]} 24. Nb4 {[%clk 0:01:01]}  dxc4 {[%clk 0:01:10]} 25. Qf2 {[%clk 0:00:53]}  Rd8 {[%clk 0:00:56]} 26. Kh2 {[%clk 0:00:46]}  h6 {[%clk 0:00:52]} 27. Nc2 {[%clk 0:00:39]}  Nxb2 {[%clk 0:00:50]} 28. Qf3 {[%clk 0:00:25]}  Nd3 {[%clk 0:00:46]} 29. g5 {[%clk 0:00:21]}  hxg5 {[%clk 0:00:43]} 30. Ne3 {[%clk 0:00:21]}  Nf4 {[%clk 0:00:35]} 31. h4 {[%clk 0:00:22]}  Rf8 {[%clk 0:00:31]} 32. Qe4 {[%clk 0:00:22]}  Qf7 {[%clk 0:00:26]} 33. Qf3 {[%clk 0:00:14]}  Qg6 {[%clk 0:00:21]} 34. Qg4 {[%clk 0:00:11]}  Qe4 {[%clk 0:00:17]} 35. Rf3 {[%clk 0:00:09]}  c3 {[%clk 0:00:16]} 36. hxg5 {[%clk 0:00:08]}  c2 {[%clk 0:00:16]} 37. Nxc2 {[%clk 0:00:03]}  Qxc2+ {[%clk 0:00:15]} 38. Kh1 {[%clk 0:00:02]}  Qd1+ {[%clk 0:00:15]} 39. Kh2 {[%clk 0:00:02]}  Qe2+ {[%clk 0:00:15]} 40. Kh1 {[%clk 0:00:02]}  Qe1+ {[%clk 0:00:13]} 41. Kh2 {[%clk 0:00:02]}  Qd2+ {[%clk 0:00:12]} 42. Kh1 {[%clk 0:00:02]}  Qc1+ {[%clk 0:00:11]} 43. Kh2 {[%clk 0:00:03]}  Qc2+ {[%clk 0:00:10]} 44. Kh1 {[%clk 0:00:03]}  Qf5 {[%clk 0:00:10]} 45. Qg3 {[%clk 0:00:03]}  Qh7+ {[%clk 0:00:10]} 46. Kg1 {[%clk 0:00:02]}  Ne2+ {[%clk 0:00:10]} 0-1


[Site "https://www.chess.com"]

[Event "Titled Tuesday Blitz November 08 Late 2022"]
[White "Kuzmicz, Krystian"]
[Black "Torres Boch, Jose Francisco"]
[WhiteFideId "1119125"]
[BlackFideId "2278383"]
[WhiteElo "2380"]
[BlackElo "2073"]
[Result "1-0"]
[Round "02"]
[TimeControl "180+1"]
[Date "2022.11.09"]
[WhiteClock "0:01:50"]
[BlackClock "0:01:20"]

1. e4 {[%clk 0:03:00]}  c5 {[%clk 0:02:57]} 2. d3 {[%clk 0:03:01]}  g6 {[%clk 0:02:56]} 3. g3 {[%clk 0:03:01]}  Bg7 {[%clk 0:02:57]} 4. Bg2 {[%clk 0:03:02]}  e6 {[%clk 0:02:56]} 5. f4 {[%clk 0:03:02]}  Ne7 {[%clk 0:02:56]} 6. Nf3 {[%clk 0:03:03]}  O-O {[%clk 0:02:57]} 7. O-O {[%clk 0:03:04]}  d5 {[%clk 0:02:57]} 8. c3 {[%clk 0:03:04]}  dxe4 {[%clk 0:02:57]} 9. dxe4 {[%clk 0:03:04]}  Qxd1 {[%clk 0:02:57]} 10. Rxd1 {[%clk 0:03:04]}  Nbc6 {[%clk 0:02:57]} 11. Na3 {[%clk 0:03:04]}  b6 {[%clk 0:02:54]} 12. e5 {[%clk 0:03:03]}  Ba6 {[%clk 0:02:51]} 13. Ng5 {[%clk 0:03:01]}  Rad8 {[%clk 0:02:49]} 14. Be3 {[%clk 0:03:01]}  Na5 {[%clk 0:02:41]} 15. Ne4 {[%clk 0:02:58]}  Nf5 {[%clk 0:02:37]} 16. Bf2 {[%clk 0:02:58]}  h5 {[%clk 0:02:36]} 17. h3 {[%clk 0:02:58]}  Nc4 {[%clk 0:02:28]} 18. Nxc4 {[%clk 0:02:56]}  Bxc4 {[%clk 0:02:29]} 19. g4 {[%clk 0:02:57]}  hxg4 {[%clk 0:02:28]} 20. hxg4 {[%clk 0:02:57]}  Rxd1+ {[%clk 0:02:25]} 21. Rxd1 {[%clk 0:02:57]}  Be2 {[%clk 0:02:26]} 22. Rd7 {[%clk 0:02:39]}  Bxg4 {[%clk 0:02:24]} 23. Rxa7 {[%clk 0:02:39]}  Rb8 {[%clk 0:02:23]} 24. b4 {[%clk 0:02:36]}  cxb4 {[%clk 0:02:13]} 25. cxb4 {[%clk 0:02:37]}  Be2 {[%clk 0:02:11]} 26. Nd6 {[%clk 0:02:30]}  Bf8 {[%clk 0:01:55]} 27. Nxf7 {[%clk 0:02:06]}  Bxb4 {[%clk 0:01:54]} 28. Ng5 {[%clk 0:02:05]}  Bc4 {[%clk 0:01:51]} 29. Ra4 {[%clk 0:02:00]}  Bxa2 {[%clk 0:01:20]} 30. Rxa2 {[%clk 0:01:50]} 1-0


[Site "https://www.chess.com"]

[Event "Titled Tuesday Blitz November 08 Late 2022"]
[White "Leschinsky, Gary"]
[Black "Perez Ponsa, Federico"]
[WhiteFideId "30951321"]
[BlackFideId "117927"]
[WhiteElo "1855"]
[BlackElo "2606"]
[Result "0-1"]
[Round "02"]
[TimeControl "180+1"]
[Date "2022.11.09"]
[WhiteClock "0:00:06"]
[BlackClock "0:00:06"]

1. d4 {[%clk 0:02:37]}  Nf6 {[%clk 0:02:55]} 2. c4 {[%clk 0:02:38]}  e6 {[%clk 0:02:55]} 3. Nc3 {[%clk 0:02:38]}  d5 {[%clk 0:02:55]} 4. cxd5 {[%clk 0:02:37]}  exd5 {[%clk 0:02:56]} 5. Bg5 {[%clk 0:02:37]}  c6 {[%clk 0:02:54]} 6. e3 {[%clk 0:02:37]}  h6 {[%clk 0:02:55]} 7. Bh4 {[%clk 0:02:37]}  Be7 {[%clk 0:02:55]} 8. Bd3 {[%clk 0:02:37]}  O-O {[%clk 0:02:56]} 9. Qc2 {[%clk 0:02:36]}  Re8 {[%clk 0:02:56]} 10. Nge2 {[%clk 0:02:35]}  Nbd7 {[%clk 0:02:55]} 11. O-O {[%clk 0:02:35]}  a5 {[%clk 0:02:55]} 12. f3 {[%clk 0:02:34]}  b5 {[%clk 0:02:55]} 13. e4 {[%clk 0:02:25]}  b4 {[%clk 0:02:52]} 14. Nb1 {[%clk 0:02:23]}  dxe4 {[%clk 0:02:49]} 15. fxe4 {[%clk 0:02:24]}  Ng4 {[%clk 0:02:49]} 16. Bxe7 {[%clk 0:02:18]}  Qxe7 {[%clk 0:02:50]} 17. Qxc6 {[%clk 0:02:07]}  Rb8 {[%clk 0:02:37]} 18. Nd2 {[%clk 0:02:06]}  Bb7 {[%clk 0:02:32]} 19. Qc7 {[%clk 0:02:05]}  Qg5 {[%clk 0:02:27]} 20. Qxd7 {[%clk 0:01:54]}  Qe3+ {[%clk 0:02:10]} 21. Kh1 {[%clk 0:01:54]}  Qxd3 {[%clk 0:02:06]} 22. Qxg4 {[%clk 0:01:13]}  Qxd2 {[%clk 0:02:06]} 23. d5 {[%clk 0:01:13]}  Bxd5 {[%clk 0:02:02]} 24. Rad1 {[%clk 0:01:10]}  Be6 {[%clk 0:01:52]} 25. Qxe6 {[%clk 0:01:01]}  Qxe2 {[%clk 0:01:51]} 26. Qxf7+ {[%clk 0:01:00]}  Kh8 {[%clk 0:01:52]} 27. Rde1 {[%clk 0:00:58]}  Qxb2 {[%clk 0:01:51]} 28. e5 {[%clk 0:00:57]}  Rxe5 {[%clk 0:01:48]} 29. Rd1 {[%clk 0:00:50]}  Re2 {[%clk 0:01:43]} 30. Qf3 {[%clk 0:00:46]}  Rbe8 {[%clk 0:01:36]} 31. h3 {[%clk 0:00:44]}  Qxa2 {[%clk 0:01:36]} 32. Rd7 {[%clk 0:00:43]}  Re1 {[%clk 0:01:29]} 33. Rxe1 {[%clk 0:00:42]}  Rxe1+ {[%clk 0:01:29]} 34. Kh2 {[%clk 0:00:42]}  Re8 {[%clk 0:01:18]} 35. Qh5 {[%clk 0:00:34]}  Rf8 {[%clk 0:01:10]} 36. Qg6 {[%clk 0:00:30]}  Qb2 {[%clk 0:01:04]} 37. Qd6 {[%clk 0:00:28]}  Qf6 {[%clk 0:01:00]} 38. Qc5 {[%clk 0:00:24]}  Qf4+ {[%clk 0:00:51]} 39. Kh1 {[%clk 0:00:23]}  b3 {[%clk 0:00:48]} 40. Rd4 {[%clk 0:00:20]}  Qf1+ {[%clk 0:00:41]} 41. Kh2 {[%clk 0:00:20]}  b2 {[%clk 0:00:42]} 42. Rd1 {[%clk 0:00:15]}  Qf5 {[%clk 0:00:18]} 43. Qb6 {[%clk 0:00:12]}  Qc2 {[%clk 0:00:12]} 44. Re1 {[%clk 0:00:06]}  a4 {[%clk 0:00:09]} 45. Qd6 {[%clk 0:00:06]}  Rc8 {[%clk 0:00:06]} 46. Qe6 {[%clk 0:00:04]}  Qc7+ {[%clk 0:00:03]} 47. Kh1 {[%clk 0:00:03]}  Rb8 {[%clk 0:00:03]} 48. Rb1 {[%clk 0:00:02]}  Qc1+ {[%clk 0:00:03]} 49. Kh2 {[%clk 0:00:02]}  Qxb1 {[%clk 0:00:03]} 50. Qe5 {[%clk 0:00:02]}  Qh1+ {[%clk 0:00:03]} 51. Kxh1 {[%clk 0:00:01]}  b1=Q+ {[%clk 0:00:04]} 52. Kh2 {[%clk 0:00:02]}  Qb2 {[%clk 0:00:05]} 53. Qe7 {[%clk 0:00:02]}  a3 {[%clk 0:00:05]} 54. Qa7 {[%clk 0:00:01]}  a2 {[%clk 0:00:05]} 55. h4 {[%clk 0:00:02]}  a1=Q {[%clk 0:00:05]} 56. h5 {[%clk 0:00:02]}  Qxa7 {[%clk 0:00:04]} 57. Kh3 {[%clk 0:00:03]}  Qd7+ {[%clk 0:00:04]} 58. Kh2 {[%clk 0:00:04]}  Qe5+ {[%clk 0:00:05]} 59. Kg1 {[%clk 0:00:04]}  Rb1+ {[%clk 0:00:05]} 60. Kf2 {[%clk 0:00:05]}  Qdd4+ {[%clk 0:00:05]} 61. Kf3 {[%clk 0:00:06]}  Qee3# {[%clk 0:00:06]} 0-1


[Site "https://www.chess.com"]

[Event "Titled Tuesday Blitz November 08 Late 2022"]
[White "Machidon, Cristi"]
[Black "Deac, Bogdan-Daniel"]
[WhiteFideId "13904590"]
[BlackFideId "1226380"]
[WhiteElo "2333"]
[BlackElo "2648"]
[Result "1/2-1/2"]
[Round "02"]
[TimeControl "180+1"]
[Date "2022.11.08"]
[WhiteClock "0:00:10"]
[BlackClock "0:00:05"]

1. d4 {[%clk 0:02:58]}  Nf6 {[%clk 0:02:59]} 2. c4 {[%clk 0:02:57]}  e6 {[%clk 0:02:59]} 3. Nc3 {[%clk 0:02:57]}  Bb4 {[%clk 0:02:59]} 4. Qc2 {[%clk 0:02:56]}  d6 {[%clk 0:02:59]} 5. a3 {[%clk 0:02:53]}  Bxc3+ {[%clk 0:02:58]} 6. Qxc3 {[%clk 0:02:54]}  b6 {[%clk 0:02:56]} 7. f3 {[%clk 0:02:54]}  c5 {[%clk 0:02:55]} 8. e4 {[%clk 0:02:46]}  cxd4 {[%clk 0:02:53]} 9. Qxd4 {[%clk 0:02:47]}  Nc6 {[%clk 0:02:53]} 10. Qd1 {[%clk 0:02:39]}  Ba6 {[%clk 0:02:44]} 11. Bf4 {[%clk 0:02:36]}  e5 {[%clk 0:02:36]} 12. Be3 {[%clk 0:02:36]}  Rc8 {[%clk 0:02:34]} 13. Rc1 {[%clk 0:02:35]}  O-O {[%clk 0:02:31]} 14. Bd3 {[%clk 0:02:28]}  Na5 {[%clk 0:02:18]} 15. b3 {[%clk 0:02:21]}  Nd7 {[%clk 0:02:17]} 16. Ne2 {[%clk 0:02:01]}  Nc5 {[%clk 0:02:17]} 17. Bxc5 {[%clk 0:01:47]}  bxc5 {[%clk 0:02:08]} 18. O-O {[%clk 0:01:42]}  Nc6 {[%clk 0:01:56]} 19. Qd2 {[%clk 0:01:34]}  Qb6 {[%clk 0:01:26]} 20. Rb1 {[%clk 0:01:33]}  Bb7 {[%clk 0:01:23]} 21. Kh1 {[%clk 0:01:18]}  a5 {[%clk 0:01:22]} 22. Bc2 {[%clk 0:01:07]}  Ba6 {[%clk 0:01:12]} 23. Nc3 {[%clk 0:00:55]}  Nd4 {[%clk 0:01:06]} 24. Nd5 {[%clk 0:00:56]}  Qd8 {[%clk 0:01:06]} 25. Bd3 {[%clk 0:00:53]}  Bb7 {[%clk 0:00:59]} 26. Ne3 {[%clk 0:00:52]}  Bc6 {[%clk 0:00:54]} 27. Rfc1 {[%clk 0:00:47]}  Rb8 {[%clk 0:00:52]} 28. b4 {[%clk 0:00:47]}  axb4 {[%clk 0:00:49]} 29. axb4 {[%clk 0:00:48]}  cxb4 {[%clk 0:00:50]} 30. Nc2 {[%clk 0:00:32]}  Nxc2 {[%clk 0:00:20]} 31. Bxc2 {[%clk 0:00:32]}  Qa5 {[%clk 0:00:04]} 32. Qxd6 {[%clk 0:00:27]}  Rfc8 {[%clk 0:00:05]} 33. c5 {[%clk 0:00:20]}  Qc7 {[%clk 0:00:04]} 34. Bb3 {[%clk 0:00:18]}  Qxd6 {[%clk 0:00:04]} 35. cxd6 {[%clk 0:00:19]}  Kf8 {[%clk 0:00:05]} 36. Rc4 {[%clk 0:00:17]}  Bd7 {[%clk 0:00:04]} 37. Kg1 {[%clk 0:00:14]}  Rxc4 {[%clk 0:00:03]} 38. Bxc4 {[%clk 0:00:15]}  Be6 {[%clk 0:00:04]} 39. Bxe6 {[%clk 0:00:10]}  fxe6 {[%clk 0:00:05]} 40. Kf2 {[%clk 0:00:10]}  Ke8 {[%clk 0:00:05]} 41. Ke2 {[%clk 0:00:10]}  Kd7 {[%clk 0:00:05]} 42. Kd3 {[%clk 0:00:11]}  Kxd6 {[%clk 0:00:05]} 43. Kc4 {[%clk 0:00:11]}  Rc8+ {[%clk 0:00:06]} 44. Kb3 {[%clk 0:00:09]}  Rc3+ {[%clk 0:00:06]} 45. Kxb4 {[%clk 0:00:09]}  Rc2 {[%clk 0:00:06]} 46. Rd1+ {[%clk 0:00:08]}  Kc6 {[%clk 0:00:05]} 47. Rg1 {[%clk 0:00:08]}  g5 {[%clk 0:00:05]} 48. h3 {[%clk 0:00:07]}  h5 {[%clk 0:00:05]} 49. Kb3 {[%clk 0:00:07]}  Rf2 {[%clk 0:00:05]} 50. Kc3 {[%clk 0:00:08]}  h4 {[%clk 0:00:05]} 51. Kd3 {[%clk 0:00:08]}  Kc5 {[%clk 0:00:06]} 52. Ke3 {[%clk 0:00:08]}  Ra2 {[%clk 0:00:06]} 53. g3 {[%clk 0:00:09]}  Rh2 {[%clk 0:00:05]} 54. gxh4 {[%clk 0:00:09]}  gxh4 {[%clk 0:00:06]} 55. Rg5 {[%clk 0:00:09]}  Kd6 {[%clk 0:00:06]} 56. Rg7 {[%clk 0:00:08]}  Rxh3 {[%clk 0:00:06]} 57. Rh7 {[%clk 0:00:09]}  Rh1 {[%clk 0:00:05]} 58. Rh5 {[%clk 0:00:08]}  h3 {[%clk 0:00:05]} 59. Kf2 {[%clk 0:00:09]}  h2 {[%clk 0:00:03]} 60. Kg2 {[%clk 0:00:09]}  Ra1 {[%clk 0:00:03]} 61. Kxh2 {[%clk 0:00:09]}  Rb1 {[%clk 0:00:04]} 62. Kg3 {[%clk 0:00:09]}  Rc1 {[%clk 0:00:03]} 63. f4 {[%clk 0:00:09]}  Rc3+ {[%clk 0:00:02]} 64. Kg4 {[%clk 0:00:09]}  exf4 {[%clk 0:00:02]} 65. Kxf4 {[%clk 0:00:09]}  Rc1 {[%clk 0:00:03]} 66. Rg5 {[%clk 0:00:08]}  Rf1+ {[%clk 0:00:03]} 67. Ke3 {[%clk 0:00:09]}  Re1+ {[%clk 0:00:04]} 68. Kd3 {[%clk 0:00:08]}  Rd1+ {[%clk 0:00:04]} 69. Ke3 {[%clk 0:00:08]}  Ra1 {[%clk 0:00:04]} 70. Rb5 {[%clk 0:00:08]}  Re1+ {[%clk 0:00:04]} 71. Kd3 {[%clk 0:00:09]}  Rd1+ {[%clk 0:00:05]} 72. Ke3 {[%clk 0:00:09]}  Re1+ {[%clk 0:00:05]} 73. Kd3 {[%clk 0:00:10]}  Rd1+ {[%clk 0:00:05]} 74. Ke3 {[%clk 0:00:10]}  Re1+ {[%clk 0:00:05]} 1/2-1/2


[Site "https://www.chess.com"]

[Event "Titled Tuesday Blitz November 08 Late 2022"]
[White "Makridis, Dimitrios"]
[Black "Krishnan, Varun"]
[WhiteFideId "25864475"]
[BlackFideId "5054508"]
[WhiteElo "2272"]
[BlackElo "2534"]
[Result "1-0"]
[Round "02"]
[TimeControl "180+1"]
[Date "2022.11.09"]
[WhiteClock "0:01:22"]
[BlackClock "0:00:01"]

1. a3 {[%clk 0:03:00]}  e5 {[%clk 0:02:49]} 2. b4 {[%clk 0:03:00]}  d5 {[%clk 0:02:48]} 3. Bb2 {[%clk 0:03:00]}  Bd6 {[%clk 0:02:44]} 4. e3 {[%clk 0:02:59]}  Ne7 {[%clk 0:02:43]} 5. c4 {[%clk 0:02:59]}  c6 {[%clk 0:02:40]} 6. Nf3 {[%clk 0:02:59]}  Ng6 {[%clk 0:02:36]} 7. d4 {[%clk 0:02:57]}  e4 {[%clk 0:02:35]} 8. Nfd2 {[%clk 0:02:57]}  O-O {[%clk 0:02:27]} 9. h4 {[%clk 0:02:57]}  f5 {[%clk 0:02:23]} 10. h5 {[%clk 0:02:56]}  Ne7 {[%clk 0:02:23]} 11. g3 {[%clk 0:02:56]}  a5 {[%clk 0:02:18]} 12. cxd5 {[%clk 0:02:55]}  cxd5 {[%clk 0:02:18]} 13. h6 {[%clk 0:02:52]}  g5 {[%clk 0:02:11]} 14. bxa5 {[%clk 0:02:52]}  Nbc6 {[%clk 0:02:04]} 15. a6 {[%clk 0:02:45]}  bxa6 {[%clk 0:02:04]} 16. Nc3 {[%clk 0:02:45]}  Rb8 {[%clk 0:01:59]} 17. Rb1 {[%clk 0:02:40]}  f4 {[%clk 0:01:56]} 18. gxf4 {[%clk 0:02:39]}  gxf4 {[%clk 0:01:56]} 19. Qh5 {[%clk 0:02:30]}  Bf5 {[%clk 0:01:34]} 20. Rg1+ {[%clk 0:02:08]}  Bg6 {[%clk 0:01:29]} 21. Nxd5 {[%clk 0:02:05]}  Nxd5 {[%clk 0:01:08]} 22. Qxd5+ {[%clk 0:02:05]}  Kh8 {[%clk 0:01:08]} 23. Qxc6 {[%clk 0:02:05]}  fxe3 {[%clk 0:01:08]} 24. fxe3 {[%clk 0:02:02]}  Qh4+ {[%clk 0:01:04]} 25. Kd1 {[%clk 0:02:02]}  Rbc8 {[%clk 0:00:29]} 26. d5+ {[%clk 0:01:52]}  Kg8 {[%clk 0:00:29]} 27. Qxd6 {[%clk 0:01:53]}  Rxf1+ {[%clk 0:00:12]} 28. Nxf1 {[%clk 0:01:19]}  Qh5+ {[%clk 0:00:04]} 29. Kd2 {[%clk 0:01:20]}  Rf8 {[%clk 0:00:03]} 30. Qe6+ {[%clk 0:01:19]}  Rf7 {[%clk 0:00:03]} 31. Rxg6+ {[%clk 0:01:20]}  hxg6 {[%clk 0:00:03]} 32. h7+ {[%clk 0:01:20]}  Qxh7 {[%clk 0:00:03]} 33. Rc1 {[%clk 0:01:20]}  Qh3 {[%clk 0:00:01]} 34. Rc8+ {[%clk 0:01:21]}  Kh7 {[%clk 0:00:01]} 35. Rh8# {[%clk 0:01:22]} 1-0


[Site "https://www.chess.com"]

[Event "Titled Tuesday Blitz November 08 Late 2022"]
[White "Marcolino, Daniel Mattos"]
[Black "Sivakumar, Shaaketh"]
[WhiteFideId "2106841"]
[BlackFideId "30940176"]
[WhiteElo "2098"]
[BlackElo "2174"]
[Result "0-1"]
[Round "02"]
[TimeControl "180+1"]
[Date "2022.11.09"]
[WhiteClock "0:01:14"]
[BlackClock "0:00:52"]

1. d4 {[%clk 0:03:00]}  e6 {[%clk 0:03:00]} 2. Nf3 {[%clk 0:03:00]}  d5 {[%clk 0:02:49]} 3. g3 {[%clk 0:03:01]}  Nf6 {[%clk 0:02:47]} 4. Bg2 {[%clk 0:03:01]}  c5 {[%clk 0:02:46]} 5. O-O {[%clk 0:03:01]}  cxd4 {[%clk 0:02:41]} 6. Nxd4 {[%clk 0:03:00]}  Nc6 {[%clk 0:02:42]} 7. c4 {[%clk 0:02:59]}  Bc5 {[%clk 0:02:37]} 8. Nb3 {[%clk 0:02:59]}  Be7 {[%clk 0:02:33]} 9. cxd5 {[%clk 0:03:00]}  exd5 {[%clk 0:02:34]} 10. Nd4 {[%clk 0:02:52]}  O-O {[%clk 0:02:33]} 11. Nc3 {[%clk 0:02:48]}  Nxd4 {[%clk 0:02:26]} 12. Qxd4 {[%clk 0:02:47]}  Be6 {[%clk 0:02:27]} 13. b3 {[%clk 0:02:20]}  Rc8 {[%clk 0:02:16]} 14. Bb2 {[%clk 0:02:21]}  Bc5 {[%clk 0:02:15]} 15. Qd3 {[%clk 0:02:16]}  Qd7 {[%clk 0:02:09]} 16. e3 {[%clk 0:02:15]}  Rfd8 {[%clk 0:02:04]} 17. Rac1 {[%clk 0:02:10]}  Bf5 {[%clk 0:02:02]} 18. Qd2 {[%clk 0:02:08]}  d4 {[%clk 0:01:59]} 19. exd4 {[%clk 0:02:03]}  Bxd4 {[%clk 0:01:59]} 20. Rfd1 {[%clk 0:01:51]}  Bg4 {[%clk 0:01:27]} 21. Ne2 {[%clk 0:01:41]}  Bxf2+ {[%clk 0:01:18]} 22. Kxf2 {[%clk 0:01:36]}  Qxd2 {[%clk 0:01:18]} 23. Rxd2 {[%clk 0:01:33]}  Rxd2 {[%clk 0:01:19]} 24. Rxc8+ {[%clk 0:01:29]}  Bxc8 {[%clk 0:01:20]} 25. Bxf6 {[%clk 0:01:28]}  Bg4 {[%clk 0:00:53]} 26. Bf3 {[%clk 0:01:16]}  Bxf3 {[%clk 0:00:53]} 27. Kxf3 {[%clk 0:01:16]}  gxf6 {[%clk 0:00:53]} 28. a4 {[%clk 0:01:15]}  Rb2 {[%clk 0:00:52]} 29. Nd4 {[%clk 0:01:14]}  Rxh2 {[%clk 0:00:52]} 0-1


[Site "https://www.chess.com"]

[Event "Titled Tuesday Blitz November 08 Late 2022"]
[White "Milikow, Yoav"]
[Black "Martic, Ivan"]
[WhiteFideId "2822237"]
[BlackFideId "929301"]
[WhiteElo "2832"]
[BlackElo "2559"]
[Result "1-0"]
[Round "02"]
[TimeControl "180+1"]
[Date "2022.11.09"]
[WhiteClock "0:00:32"]
[BlackClock "0:00:28"]

1. d4 {[%clk 0:03:00]}  Nf6 {[%clk 0:02:59]} 2. c4 {[%clk 0:03:00]}  g6 {[%clk 0:02:59]} 3. g3 {[%clk 0:02:56]}  Bg7 {[%clk 0:02:58]} 4. Bg2 {[%clk 0:02:57]}  d5 {[%clk 0:02:58]} 5. cxd5 {[%clk 0:02:56]}  Nxd5 {[%clk 0:02:59]} 6. e4 {[%clk 0:02:57]}  Nb6 {[%clk 0:02:59]} 7. Ne2 {[%clk 0:02:57]}  O-O {[%clk 0:02:58]} 8. O-O {[%clk 0:02:56]}  Nc6 {[%clk 0:02:55]} 9. d5 {[%clk 0:02:55]}  Na5 {[%clk 0:02:54]} 10. Nbc3 {[%clk 0:02:55]}  c6 {[%clk 0:02:54]} 11. Bf4 {[%clk 0:02:43]}  cxd5 {[%clk 0:02:50]} 12. exd5 {[%clk 0:02:41]}  Nac4 {[%clk 0:02:50]} 13. b3 {[%clk 0:02:39]}  Nd6 {[%clk 0:02:47]} 14. a4 {[%clk 0:02:36]}  Bg4 {[%clk 0:02:41]} 15. f3 {[%clk 0:02:29]}  Bd7 {[%clk 0:02:25]} 16. a5 {[%clk 0:02:28]}  Nbc8 {[%clk 0:02:25]} 17. Qd2 {[%clk 0:02:21]}  Re8 {[%clk 0:02:15]} 18. Bh6 {[%clk 0:02:17]}  Bh8 {[%clk 0:02:12]} 19. Be3 {[%clk 0:02:17]}  Nf5 {[%clk 0:02:11]} 20. Bf2 {[%clk 0:02:15]}  Ncd6 {[%clk 0:01:58]} 21. g4 {[%clk 0:02:13]}  Ng7 {[%clk 0:01:57]} 22. Rfe1 {[%clk 0:02:10]}  h5 {[%clk 0:01:48]} 23. h3 {[%clk 0:02:08]}  hxg4 {[%clk 0:01:48]} 24. hxg4 {[%clk 0:02:09]}  e5 {[%clk 0:01:42]} 25. Bc5 {[%clk 0:01:46]}  Qc7 {[%clk 0:01:29]} 26. Be3 {[%clk 0:01:33]}  f5 {[%clk 0:01:25]} 27. Rec1 {[%clk 0:01:28]}  Qd8 {[%clk 0:01:24]} 28. Bc5 {[%clk 0:01:26]}  Nf7 {[%clk 0:01:21]} 29. gxf5 {[%clk 0:01:23]}  gxf5 {[%clk 0:01:11]} 30. Bf2 {[%clk 0:01:18]}  Nh5 {[%clk 0:01:06]} 31. Na4 {[%clk 0:00:54]}  Bf6 {[%clk 0:01:03]} 32. Nc5 {[%clk 0:00:53]}  Bg5 {[%clk 0:01:01]} 33. Qb4 {[%clk 0:00:52]}  Bxc1 {[%clk 0:01:00]} 34. Rxc1 {[%clk 0:00:52]}  Rb8 {[%clk 0:00:52]} 35. Bh4 {[%clk 0:00:48]}  Ng5 {[%clk 0:00:48]} 36. Nxd7 {[%clk 0:00:46]}  Qxd7 {[%clk 0:00:40]} 37. Bxg5 {[%clk 0:00:46]}  Qg7 {[%clk 0:00:40]} 38. Qh4 {[%clk 0:00:45]}  Qg6 {[%clk 0:00:39]} 39. Rc7 {[%clk 0:00:44]}  Kh8 {[%clk 0:00:35]} 40. Ng3 {[%clk 0:00:43]}  Rg8 {[%clk 0:00:33]} 41. Bf6+ {[%clk 0:00:32]}  Qxf6 {[%clk 0:00:28]} 42. Qxh5+ {[%clk 0:00:32]} 1-0


[Site "https://www.chess.com"]